fUSD/lending_fUSD_20251225
["ID","MTS","AMOUNT","RATE_DAILY","PERIOD"]
[399808331,1766689842087,-150.0,0.00015288,2]
[399808332,1766689842097,-150.0,0.00015288,2]
[399808333,1766689842107,-180.03875056,0.00015305,2]
[399808334,1766689842117,-150.0,0.00015307,2]
[399808335,1766689842127,-150.0,0.00015308,2]
[399808336,1766689842137,-150.0,0.00015316,2]
[399808337,1766689842147,-150.0,0.00015317,2]
[399808338,1766689842157,-180.03875056,0.00015322,2]
[399808339,1766689842167,-150.0,0.00015324,2]
[399808340,1766689842177,-150.0,0.00015326,2]
[399808341,1766689842187,-150.0,0.00015329,2]
[399808342,1766689842197,-150.0,0.00015335,2]
[399808343,1766689842207,-180.03875056,0.00015339,2]
[399808344,1766689842217,-150.0,0.00015343,2]
[399808345,1766689842227,-150.0,0.00015346,2]
[399808346,1766689842238,-150.0,0.00015347,2]
[399808347,1766689842248,-150.0,0.00015349,2]
[399808348,1766689842258,-180.03875056,0.00015356,2]
[399808349,1766689842268,-150.0,0.00015358,2]
[399808350,1766689842279,-150.0,0.0001536,2]
[399808351,1766689842289,-150.0,0.00015365,2]
[399808352,1766689842299,-150.0,0.0001537,2]
[399808353,1766689842309,-433.0,0.0001537,2]
[399808354,1766689842320,-150.0,0.00015371,2]
[399808355,1766689842330,-180.03875056,0.00015373,2]
[399808356,1766689842340,-150.0,0.00015377,2]
[399808357,1766689842351,-150.0,0.00015377,2]
[399808358,1766689842362,-150.0,0.00015382,2]
[399808359,1766689842372,-150.0,0.00015384,2]
[399808360,1766689842383,-150.0,0.0001539,2]
[399808361,1766689842394,-180.03875056,0.00015391,2]
[399808362,1766689842404,-150.0,0.00015396,2]
[399808363,1766689842415,-150.0,0.00015399,2]
[399808364,1766689842425,-150.0,0.00015401,2]
[399808365,1766689842435,-150.0,0.00015403,2]
[399808366,1766689842446,-150.0,0.00015407,2]
[399808367,1766689842456,-180.03875056,0.00015408,2]
[399808368,1766689842466,-150.0,0.0001541,2]
[399808369,1766689842477,-150.0,0.00015423,2]
[399808370,1766689842488,-180.03875056,0.00015425,2]
[399808371,1766689842498,-150.0,0.00015427,2]
[399808372,1766689842508,-150.0,0.00015429,2]
[399808373,1766689842518,-150.0,0.00015429,2]
[399808374,1766689842529,-150.0,0.00015429,2]
[399808375,1766689842539,-150.0,0.00015431,2]
[399808376,1766689842549,-150.0,0.00015432,2]
[399808377,1766689842559,-150.0,0.00015437,2]
[399808378,1766689842569,-150.0,0.00015442,2]
[399808379,1766689842579,-180.03875056,0.00015442,2]
[399808380,1766689842591,-150.0,0.00015451,2]
[399808381,1766689842601,-150.0,0.00015455,2]
[399808382,1766689842611,-180.03875056,0.00015459,2]
[399808383,1766689842621,-150.0,0.00015461,2]
[399808384,1766689842631,-150.0,0.00015466,2]
[399808385,1766689842643,-150.0,0.00015466,2]
[399808386,1766689842652,-150.0,0.00015468,2]
[399808387,1766689842663,-150.0,0.00015472,2]
[399808388,1766689842674,-180.03875056,0.00015476,2]
[399808389,1766689842684,-150.0,0.00015476,2]
[399808390,1766689842695,-150.0,0.00015481,2]
[399808391,1766689842705,-150.0,0.00015483,2]
[399808392,1766689842715,-150.0,0.00015492,2]
[399808393,1766689842726,-180.03875056,0.00015494,2]
[399808394,1766689842739,-150.0,0.00015496,2]
[399808395,1766689842749,-150.0,0.000155,2]
[399808396,1766689842759,-150.0,0.000155,2]
[399808397,1766689842770,-150.0,0.00015505,2]
[399808398,1766689842780,-150.0,0.0001551,2]
[399808399,1766689842791,-180.03875056,0.00015511,2]
[399808400,1766689842802,-150.0,0.00015513,2]
[399808401,1766689842812,-150.0,0.00015514,2]
[399808402,1766689842822,-150.0,0.00015519,2]
[399808403,1766689842832,-11683.0,0.00015519,2]
[399808404,1766689842843,-150.0,0.00015524,2]
[399808405,1766689842852,-150.0,0.00015526,2]
[399808406,1766689842862,-180.03875056,0.00015528,2]
[399808407,1766689842872,-150.0,0.00015533,2]
[399808408,1766689842882,-150.0,0.00015538,2]
[399808409,1766689842892,-150.0,0.00015539,2]
[399808410,1766689842902,-150.0,0.00015541,2]
[399808411,1766689842913,-180.03875056,0.00015545,2]
[399808412,1766689842924,-150.0,0.00015554,2]
[399808413,1766689842934,-150.0,0.00015556,2]
[399808414,1766689842944,-150.0,0.00015556,2]
[399808415,1766689842955,-150.0,0.00015558,2]
[399808416,1766689842966,-180.03875056,0.00015562,2]
[399808417,1766689842977,-150.0,0.00015566,2]
[399808418,1766689842989,-150.0,0.00015571,2]
[399808419,1766689843001,-150.0,0.00015571,2]
[399808420,1766689843012,-150.0,0.00015571,2]
[399808421,1766689843023,-150.0,0.00015574,2]
[399808422,1766689843035,-150.0,0.00015577,2]
[399808423,1766689843046,-150.0,0.00015577,2]
[399808424,1766689843057,-180.03875056,0.00015579,2]
[399808425,1766689843071,-150.0,0.00015586,2]
[399808427,1766689843082,-3240.0,0.00015591,2]
[399808429,1766689843093,-500.0,0.00015592,2]
[399808430,1766689843104,-214.15037368,0.00015593,2]
[399808431,1766689843115,-150.0,0.00015594,2]
[399808432,1766689843126,-150.0,0.00015595,2]
[399808433,1766689843137,-150.0,0.00015597,2]
[399808434,1766689843149,-180.03875056,0.00015597,2]
[399808435,1766689843160,-150.0,0.00015613,2]
[399808436,1766689843171,-180.03875056,0.00015614,2]
[399808437,1766689843182,-150.0,0.00015615,2]
[399808438,1766689843193,-150.0,0.00015615,2]
[399808439,1766689843204,-150.0,0.00015616,2]
[399808440,1766689843215,-150.0,0.00015618,2]
[399808441,1766689843226,-150.0,0.00015622,2]
[399808442,1766689843242,-150.0,0.00015627,2]
[399808443,1766689843254,-180.03875056,0.00015631,2]
[399808444,1766689843267,-150.0,0.00015635,2]
[399808445,1766689843278,-150.0,0.00015636,2]
[399808446,1766689843290,-150.0,0.00015642,2]
[399808447,1766689843301,-150.0,0.00015645,2]
[399808448,1766689843311,-150.0,0.00015645,2]
[399808449,1766689843323,-180.03875056,0.00015648,2]
[399808450,1766689843333,-150.0,0.00015649,2]
[399808451,1766689843344,-150.0,0.0001565,2]
[399808452,1766689843355,-14081.0272107,0.00015653,2]
[399808453,1766689843366,-150.0,0.00015654,2]
[399808454,1766689843377,-351.8,0.00015656,2]
[399808455,1766689843388,-150.0,0.00015656,2]
[399808456,1766689843399,-1065.1191064,0.00015662,2]
[399808457,1766689843410,-180.03875056,0.00015665,2]
[399808458,1766689843420,-150.0,0.00015665,2]
[399808459,1766689843431,-150.0,0.00015674,2]
[399808460,1766689843442,-150.0,0.00015675,2]
[399808461,1766689843452,-150.0,0.00015677,2]
[399808462,1766689843463,-150.0,0.00015678,2]
[399808463,1766689843473,-180.03875056,0.00015682,2]
[399808464,1766689843485,-150.0,0.00015685,2]
[399808466,1766689843495,-9574.85791024,0.00015687,2]
[399808468,1766689843506,-150.0,0.00015693,2]
[399808469,1766689843516,-150.0,0.00015697,2]
[399808470,1766689843527,-180.03875056,0.00015699,2]
[399808471,1766689843538,-150.0,0.00015705,2]
[399808472,1766689843548,-150.0,0.00015705,2]
[399808473,1766689843560,-150.0,0.00015712,2]
[399808474,1766689843571,-150.0,0.00015712,2]
[399808475,1766689843583,-150.0,0.00015712,2]
[399808476,1766689843595,-150.0,0.00015712,2]
[399808477,1766689843605,-180.03875056,0.00015717,2]
[399808478,1766689843616,-150.0,0.00015717,2]
[399808479,1766689843628,-150.0,0.00015721,2]
[399808480,1766689843641,-293.15348985,0.00015729,2]
[399808481,1766689843652,-150.0,0.00015732,2]
[399808482,1766689843663,-150.0,0.00015733,2]
[399808483,1766689843674,-180.03875056,0.00015734,2]
[399808484,1766689843684,-150.0,0.00015735,2]
[399808485,1766689843695,-150.0,0.00015735,2]
[399808486,1766689843706,-150.0,0.00015738,2]
[399808487,1766689843718,-150.0,0.00015741,2]
[399808488,1766689843730,-150.0,0.00015751,2]
[399808489,1766689843741,-180.03875056,0.00015751,2]
[399808490,1766689843752,-150.0,0.00015758,2]
[399808491,1766689843763,-150.0,0.00015758,2]
[399808492,1766689843773,-150.0,0.0001576,2]
[399808493,1766689843783,-150.0,0.00015761,2]
[399808494,1766689843794,-150.0,0.00015764,2]
[399808495,1766689843804,-180.03875056,0.00015768,2]
[399808496,1766689843815,-30000.0,0.00015769,2]
[399808497,1766689843825,-150.0,0.0001577,2]
[399808498,1766689843837,-1788.58,0.00015771,2]
[399808499,1766689843847,-150.0,0.00015779,2]
[399808500,1766689843858,-150.0,0.00015783,2]
[399808501,1766689843869,-180.03875056,0.00015785,2]
[399808502,1766689843880,-150.0,0.00015789,2]
[399808503,1766689843891,-150.0,0.0001579,2]
[399808504,1766689843902,-150.0,0.00015794,2]
[399808505,1766689843912,-150.0,0.00015794,2]
[399808506,1766689843923,-150.0,0.00015799,2]
[399808507,1766689843934,-686.0,0.000158,2]
[399808508,1766689843944,-180.03875056,0.00015802,2]
[399808509,1766689843956,-150.0,0.00015807,2]
[399808510,1766689843966,-150.0,0.00015809,2]
[399808511,1766689843977,-150.0,0.00015817,2]
[399808512,1766689843990,-180.03875056,0.0001582,2]
[399808513,1766689844002,-150.0,0.0001582,2]
[399808514,1766689844013,-150.0,0.00015824,2]
[399808515,1766689844024,-150.0,0.00015824,2]
[399808516,1766689844036,-150.0,0.00015828,2]
[399808517,1766689844047,-150.0,0.0001583,2]
[399808518,1766689844058,-180.03875056,0.00015837,2]
[399808519,1766689844071,-150.0,0.0001584,2]
[399808520,1766689844083,-150.0,0.00015845,2]
[399808521,1766689844094,-150.0,0.00015847,2]
[399808522,1766689844105,-150.0,0.00015854,2]
[399808523,1766689844116,-150.0,0.00015854,2]
[399808524,1766689844127,-150.0,0.00015854,2]
[399808525,1766689844138,-180.03875056,0.00015854,2]
[399808526,1766689844150,-150.0,0.00015854,2]
[399808527,1766689844161,-150.0,0.00015854,2]
[399808528,1766689844172,-150.0,0.00015854,2]
[399808529,1766689844183,-10000.0,0.00015856,2]
[399808530,1766689844194,-150.0,0.00015861,2]
[399808531,1766689844207,-150.0,0.00015866,2]
[399808532,1766689844225,-150.0,0.00015867,2]
[399808533,1766689844241,-180.03875056,0.00015871,2]
[399808534,1766689844253,-150.0,0.00015872,2]
[399808535,1766689844264,-150.0,0.00015881,2]
[399808536,1766689844278,-150.0,0.00015884,2]
[399808537,1766689844289,-150.0,0.00015886,2]
[399808538,1766689844302,-180.03875056,0.00015888,2]
[399808539,1766689844312,-150.0,0.000159,2]
[399808540,1766689844323,-150.0,0.00015901,2]
[399808541,1766689844334,-150.0,0.00015902,2]
[399808542,1766689844345,-150.0,0.00015902,2]
[399808543,1766689844355,-150.0,0.00015905,2]
[399808544,1766689844366,-180.03875056,0.00015905,2]
[399808545,1766689844377,-150.0,0.00015913,2]
[399808546,1766689844387,-150.0,0.00015913,2]
[399808547,1766689844399,-150.0,0.00015922,2]
[399808548,1766689844410,-180.03875056,0.00015923,2]
[399808549,1766689844420,-150.0,0.00015925,2]
[399808550,1766689844432,-150.0,0.00015925,2]
[399808551,1766689844443,-150.0,0.00015928,2]
[399808552,1766689844453,-150.0,0.00015938,2]
[399808553,1766689844465,-180.03875056,0.0001594,2]
[399808554,1766689844475,-150.0,0.00015943,2]
[399808555,1766689844486,-150.0,0.00015943,2]
[399808556,1766689844498,-150.0,0.00015944,2]
[399808557,1766689844509,-150.0,0.00015948,2]
[399808558,1766689844520,-150.0,0.00015956,2]
[399808559,1766689844531,-180.03875056,0.00015957,2]
[399808560,1766689844542,-150.0,0.00015963,2]
[399808561,1766689844553,-150.0,0.00015963,2]
[399808562,1766689844565,-150.0,0.00015967,2]
[399808563,1766689844576,-150.0,0.00015973,2]
[399808564,1766689844587,-180.03875056,0.00015974,2]
[399808565,1766689844598,-150.0,0.00015974,2]
[399808566,1766689844608,-150.0,0.00015983,2]
[399808567,1766689844618,-150.0,0.00015983,2]
[399808568,1766689844629,-150.0,0.00015984,2]
[399808569,1766689844641,-215.0738,0.00015991,2]
[399808570,1766689844652,-180.03875056,0.00015991,2]
[399808571,1766689844663,-150.0,0.00015995,2]
[399808572,1766689844673,-150.0,0.00015995,2]
[399808573,1766689844684,-150.0,0.00015995,2]
[399808574,1766689844695,-150.0,0.00016002,2]
[399808575,1766689844706,-150.0,0.00016003,2]
[399808576,1766689844717,-150.0,0.00016003,2]
[399808577,1766689844727,-150.0,0.00016004,2]
[399808578,1766689844738,-180.03875056,0.00016008,2]
[399808579,1766689844749,-150.0,0.0001601,2]
[399808580,1766689844760,-150.0,0.00016012,2]
[399808581,1766689844771,-234.55,0.00016012,2]
[399808582,1766689844782,-150.0,0.00016021,2]
[399808583,1766689844793,-150.0,0.00016024,2]
[399808584,1766689844804,-180.03875056,0.00016025,2]
[399808585,1766689844815,-150.0,0.00016033,2]
[399808586,1766689844826,-150.0,0.0001604,2]
[399808587,1766689844837,-150.0,0.0001604,2]
[399808588,1766689844848,-180.03875056,0.00016043,2]
[399808589,1766689844858,-150.0,0.00016043,2]
[399808590,1766689844869,-150.0,0.00016045,2]
[399808591,1766689844881,-150.0,0.00016047,2]
[399808592,1766689844892,-236.57738109,0.00016053,2]
[399808593,1766689844904,-150.0,0.0001606,2]
[399808594,1766689844915,-180.03875056,0.0001606,2]
[399808595,1766689844925,-150.0,0.00016062,2]
[399808596,1766689844935,-150.0,0.00016065,2]
[399808597,1766689844947,-150.0,0.00016066,2]
[399808598,1766689844958,-150.0,0.00016067,2]
[399808599,1766689844969,-14081.0272107,0.00016069,2]
[399808600,1766689844979,-180.03875056,0.00016077,2]
[399808601,1766689844990,-150.0,0.00016079,2]
[399808602,1766689845001,-150.0,0.0001608,2]
[399808603,1766689845014,-150.0,0.00016083,2]
[399808604,1766689845026,-150.0,0.00016086,2]
[399808605,1766689845038,-150.0,0.0001609,2]
[399808606,1766689845049,-9574.85791024,0.00016091,2]
[399808607,1766689845062,-150.0,0.00016092,2]
[399808608,1766689845074,-150.0,0.00016092,2]
[399808609,1766689845086,-180.03875056,0.00016094,2]
[399808610,1766689845097,-150.0,0.00016095,2]
[399808611,1766689845108,-150.0,0.00016098,2]
[399808612,1766689845119,-1055.0,0.000161,2]
[399808613,1766689845131,-150.0,0.00016106,2]
[399808614,1766689845143,-180.03875056,0.00016111,2]
[399808615,1766689845154,-150.0,0.00016118,2]
[399808616,1766689845166,-150.0,0.00016119,2]
[399808617,1766689845176,-150.0,0.00016122,2]
[399808618,1766689845187,-150.0,0.00016123,2]
[399808619,1766689845199,-150.0,0.00016127,2]
[399808620,1766689845210,-180.03875056,0.00016128,2]
[399808621,1766689845221,-200.0,0.00016131,2]
[399808622,1766689845232,-150.0,0.00016137,2]
[399808623,1766689845243,-150.0,0.00016137,2]
[399808624,1766689845254,-150.0,0.00016137,2]
[399808625,1766689845266,-150.0,0.00016137,2]
[399808626,1766689845277,-180.03875056,0.00016146,2]
[399808627,1766689845288,-150.0,0.00016147,2]
[399808628,1766689845299,-578.20924308,0.00016149,2]
[399808629,1766689845310,-574.12855637,0.00016149,2]
[399808630,1766689845321,-3610.92924073,0.00016149,2]
[399808631,1766689845332,-500.0,0.00016149,2]
[399808632,1766689845342,-620.0,0.00016149,2]
[399808633,1766689845354,-500.0,0.00016149,2]
[399808634,1766689845365,-500.0,0.00016149,2]
[399808635,1766689845376,-500.0,0.00016149,2]
[399808636,1766689845387,-500.0,0.00016149,2]
[399808637,1766689845398,-500.0,0.00016149,2]
[399808638,1766689845408,-500.0,0.00016149,2]
[399808639,1766689845420,-500.0,0.00016149,2]
[399808640,1766689845431,-283.18901002,0.00016149,2]
[399808641,1766689845442,-500.0,0.00016149,2]
[399808642,1766689845452,-500.0,0.00016149,2]
[399808643,1766689845463,-500.0,0.00016149,2]
[399808644,1766689845474,-500.0,0.00016149,2]
[399808645,1766689845486,-500.0,0.00016149,2]
[399808646,1766689845497,-500.0,0.00016149,2]
[399808647,1766689845508,-500.0,0.00016149,2]
[399808648,1766689845519,-500.0,0.00016149,2]
[399808649,1766689845530,-500.0,0.00016149,2]
[399808650,1766689845542,-500.0,0.00016149,2]
[399808651,1766689845553,-151.0,0.00016149,2]
[399808652,1766689845564,-1500.0,0.00016149,2]
[399808653,1766689845575,-500.0,0.00016149,2]
[399808654,1766689845585,-1500.0,0.00016149,2]
[399808655,1766689845597,-500.0,0.00016149,2]
[399808656,1766689845607,-1500.0,0.00016149,2]
[399808657,1766689845618,-500.0,0.00016149,2]
[399808658,1766689845628,-1500.0,0.00016149,2]
[399808659,1766689845639,-500.0,0.00016149,2]
[399808660,1766689845650,-1500.0,0.00016149,2]
[399808661,1766689845661,-500.0,0.00016149,2]
[399808662,1766689845672,-1500.0,0.00016149,2]
[399808663,1766689845683,-500.0,0.00016149,2]
[399808664,1766689845694,-1500.0,0.00016149,2]
[399808666,1766689845705,-1500.0,0.00016149,2]
[399808667,1766689845717,-250.0,0.00016149,2]
[399808668,1766689845728,-250.0,0.00016149,2]
[399808669,1766689845739,-1500.0,0.00016149,2]
[399808670,1766689845750,-250.0,0.00016149,2]
[399808671,1766689845761,-250.0,0.00016149,2]
[399808672,1766689845772,-1500.0,0.00016149,2]
[399808673,1766689845783,-250.0,0.00016149,2]
[399808674,1766689845794,-250.0,0.00016149,2]
[399808675,1766689845805,-1500.0,0.00016149,2]
[399808676,1766689845815,-250.0,0.00016149,2]
[399808677,1766689845827,-322.6107,0.00016149,2]
[399808678,1766689845838,-250.0,0.00016149,2]
[399808679,1766689845848,-250.0,0.00016149,2]
[399808681,1766689845860,-250.0,0.00016149,2]
[399808683,1766689845871,-250.0,0.00016149,2]
[399808685,1766689845882,-250.0,0.00016149,2]
[399808687,1766689845894,-250.0,0.00016149,2]
[399808690,1766689846147,-250.0,0.00016149,2]
[399808691,1766689846167,-250.0,0.00016149,2]
[399808692,1766689846177,-250.0,0.00016149,2]
[399808693,1766689846188,-250.0,0.00016149,2]
[399808694,1766689846198,-250.0,0.00016149,2]
[399808695,1766689846208,-250.0,0.00016149,2]
[399808696,1766689846218,-250.0,0.00016149,2]
[399808697,1766689846229,-250.0,0.00016149,2]
[399808698,1766689846239,-200.0,0.00016149,2]
[399808699,1766689846249,-250.0,0.00016149,2]
[399808700,1766689846259,-250.0,0.00016149,2]
[399808701,1766689846269,-207.4,0.00016149,2]
[399808702,1766689846280,-215.0738,0.00016149,2]
[399808703,1766689846291,-250.0,0.00016149,2]
[399808704,1766689846302,-223.0315306,0.00016149,2]
[399808705,1766689846312,-250.0,0.00016149,2]
[399808706,1766689846322,-231.28369723,0.00016149,2]
[399808707,1766689846331,-250.0,0.00016149,2]
[399808708,1766689846342,-239.84119403,0.00016149,2]
[399808709,1766689846351,-250.0,0.00016149,2]
[399808710,1766689846361,-248.71531821,0.00016149,2]
[399808711,1766689846372,-257.91778498,0.00016149,2]
[399808712,1766689846382,-267.46074303,0.00016149,2]
[399808713,1766689846392,-277.35679052,0.00016149,2]
[399808714,1766689846403,-150.0,0.00016151,2]
[399808715,1766689846413,-150.0,0.00016152,2]
[399808716,1766689846423,-150.0,0.00016155,2]
[399808717,1766689846432,-150.0,0.00016156,2]
[399808718,1766689846442,-180.03875056,0.00016163,2]
[399808719,1766689846452,-150.0,0.00016168,2]
[399808720,1766689846462,-150.0,0.00016176,2]
[399808721,1766689846472,-150.0,0.00016179,2]
[399808722,1766689846482,-180.03875056,0.0001618,2]
[399808723,1766689846492,-150.0,0.00016182,2]
[399808725,1766689846502,-150.0,0.00016182,2]
[399808726,1766689846512,-500.0,0.00016183,2]
[399808727,1766689846522,-500.0,0.00016183,2]
[399808728,1766689846532,-500.0,0.00016183,2]
[399808729,1766689846543,-500.0,0.00016183,2]
[399808730,1766689846553,-500.0,0.00016183,2]
[399808731,1766689846563,-500.0,0.00016183,2]
[399808732,1766689846574,-648.46173605,0.00016183,2]
[399808733,1766689846584,-515.54072242,0.00016183,2]
[399808734,1766689846595,-500.0,0.00016183,2]
[399808735,1766689846605,-349.16265713,0.00016183,2]
[399808736,1766689846615,-500.0,0.00016183,2]
[399808737,1766689846625,-500.0,0.00016183,2]
[399808738,1766689846635,-500.0,0.00016183,2]
[399808739,1766689846645,-500.0,0.00016183,2]
[399808740,1766689846655,-500.0,0.00016183,2]
[399808741,1766689846665,-500.0,0.00016183,2]
[399808742,1766689846675,-168.21782,0.00016183,2]
[399808743,1766689846685,-500.0,0.00016183,2]
[399808744,1766689846695,-500.0,0.00016183,2]
[399808745,1766689846705,-500.0,0.00016183,2]
[399808746,1766689846715,-160.176,0.00016183,2]
[399808747,1766689846724,-500.0,0.00016183,2]
[399808748,1766689846735,-500.0,0.00016183,2]
[399808749,1766689846745,-500.0,0.00016183,2]
[399808750,1766689846754,-500.66742167,0.00016183,2]
[399808751,1766689846765,-500.0,0.00016183,2]
[399808752,1766689846775,-500.0,0.00016183,2]
[399808753,1766689846784,-500.0,0.00016183,2]
[399808754,1766689846794,-500.0,0.00016183,2]
[399808755,1766689846804,-500.0,0.00016183,2]
[399808756,1766689846814,-500.0,0.00016183,2]
[399808757,1766689846824,-500.0,0.00016183,2]
[399808758,1766689846833,-500.0,0.00016183,2]
[399808759,1766689846843,-500.0,0.00016183,2]
[399808760,1766689846852,-500.0,0.00016183,2]
[399808761,1766689846862,-500.0,0.00016183,2]
[399808762,1766689846871,-500.0,0.00016183,2]
[399808763,1766689846881,-164.92711325,0.00016183,2]
[399808764,1766689846891,-150.0,0.00016184,2]
[399808765,1766689846901,-150.0,0.00016188,2]
[399808766,1766689846910,-150.0,0.00016191,2]
[399808767,1766689846920,-150.0,0.00016194,2]
[399808768,1766689846930,-150.0,0.00016195,2]
[399808769,1766689846940,-180.03875056,0.00016197,2]
[399808770,1766689846949,-150.0,0.00016207,2]
[399808771,1766689846958,-150.0,0.00016208,2]
[399808772,1766689846968,-150.0,0.00016209,2]
[399808773,1766689846978,-150.0,0.00016211,2]
[399808774,1766689846988,-150.0,0.00016214,2]
[399808775,1766689846998,-180.03875056,0.00016214,2]
[399808776,1766689847009,-150.0,0.00016227,2]
[399808777,1766689847021,-150.0,0.00016229,2]
[399808778,1766689847032,-1055.0,0.00016229,2]
[399808779,1766689847043,-180.03875056,0.00016231,2]
[399808780,1766689847055,-150.0,0.00016231,2]
[399808781,1766689847066,-150.0,0.00016233,2]
[399808782,1766689847076,-150.0,0.00016234,2]
[399808783,1766689847088,-150.0,0.00016241,2]
[399808784,1766689847099,-180.03875056,0.00016249,2]
[399808785,1766689847109,-150.0,0.0001625,2]
[399808786,1766689847119,-150.0,0.00016253,2]
[399808787,1766689847130,-150.0,0.00016262,2]
[399808788,1766689847141,-150.0,0.00016263,2]
[399808789,1766689847151,-180.03875056,0.00016266,2]
[399808790,1766689847162,-150.0,0.0001627,2]
[399808791,1766689847173,-150.0,0.00016271,2]
[399808792,1766689847183,-150.0,0.00016271,2]
[399808793,1766689847194,-150.0,0.00016272,2]
[399808794,1766689847204,-150.0,0.00016279,2]
[399808795,1766689847214,-150.0,0.00016279,2]
[399808796,1766689847224,-150.0,0.00016279,2]
[399808797,1766689847234,-1065.1191064,0.00016281,2]
[399808798,1766689847244,-180.03875056,0.00016283,2]
[399808799,1766689847254,-150.0,0.0001629,2]
[399808800,1766689847264,-150.0,0.0001629,2]
[399808801,1766689847276,-150.0,0.00016291,2]
[399808802,1766689847286,-150.0,0.000163,2]
[399808803,1766689847296,-180.03875056,0.000163,2]
[399808804,1766689847306,-150.0,0.00016301,2]
[399808805,1766689847317,-150.0,0.00016307,2]
[399808806,1766689847327,-150.0,0.00016311,2]
[399808807,1766689847336,-150.0,0.00016311,2]
[399808808,1766689847347,-180.03875056,0.00016317,2]
[399808809,1766689847357,-150.0,0.00016318,2]
[399808810,1766689847367,-150.0,0.00016326,2]
[399808811,1766689847377,-150.0,0.0001633,2]
[399808812,1766689847387,-150.0,0.00016331,2]
[399808813,1766689847397,-150.0,0.00016331,2]
[399808814,1766689847407,-180.03875056,0.00016334,2]
[399808815,1766689847416,-150.0,0.00016336,2]
[399808816,1766689847426,-150.0,0.00016346,2]
[399808817,1766689847436,-150.0,0.00016349,2]
[399808818,1766689847446,-150.0,0.00016349,2]
[399808819,1766689847456,-180.03875056,0.00016351,2]
[399808820,1766689847467,-150.0,0.00016352,2]
[399808821,1766689847477,-150.0,0.0001636,2]
[399808822,1766689847487,-150.0,0.0001636,2]
[399808823,1766689847497,-150.0,0.00016369,2]
[399808824,1766689847507,-180.03875056,0.00016369,2]
[399808825,1766689847517,-150.0,0.00016372,2]
[399808826,1766689847527,-150.0,0.00016372,2]
[399808827,1766689847537,-150.0,0.00016373,2]
[399808828,1766689847546,-150.0,0.00016374,2]
[399808829,1766689847556,-1055.0,0.00016383,2]
[399808830,1766689847566,-180.03875056,0.00016386,2]
[399808831,1766689847575,-150.0,0.00016388,2]
[399808832,1766689847586,-150.0,0.0001639,2]
[399808833,1766689847596,-150.0,0.00016393,2]
[399808834,1766689847606,-228.0,0.000164,2]
[399808835,1766689847617,-319.0,0.000164,2]
[399808836,1766689847629,-182.0,0.000164,2]
[399808837,1766689847639,-184.24951816,0.000164,2]
[399808838,1766689847649,-150.0,0.00016402,2]
[399808839,1766689847659,-180.03875056,0.00016403,2]
[399808840,1766689847669,-150.0,0.00016407,2]
[399808841,1766689847679,-150.0,0.00016408,2]
[399808842,1766689847688,-150.0,0.00016413,2]